bitfinex/quotes_ETHUSD_20240621
["timestamp","ask_amount","ask_price","bid_price","bid_amount"]
[1718947189947,2.3685,3517.7,3516.9,3.0]
[1718947190329,0.4924983,3517.6,3516.9,3.0]
[1718947190524,0.876,3517.3,3516.9,3.0]
[1718947190768,0.876,3517.0,3516.2,5.1804]
[1718947191072,0.86619813,3516.9,3516.2,5.1804]
[1718947191238,0.4924983,3516.8,3516.2,5.1804]
[1718947191440,0.4924983,3516.7,3516.2,5.1804]
[1718947191632,0.4924983,3516.9,3516.2,5.1804]
[1718947191839,0.4924983,3516.8,3516.2,5.1804]
[1718947192044,0.49261839,3516.7,3516.2,5.1804]
[1718947192347,0.4926184,3516.6,3516.2,5.1804]
[1718947192570,0.4926184,3516.5,3516.3,3.0]
[1718947192878,0.4926184,3516.7,3516.3,3.0]
[1718947193048,0.4926184,3516.6,3516.3,3.0]
[1718947193249,2.3942,3516.4,3516.3,3.0]
[1718947193577,2.8868184,3516.4,3516.3,3.0]
[1718947196252,2.8868184,3516.4,3515.9,0.22746648]
[1718947196482,0.4926184,3516.3,3515.9,0.22746648]
[1718947198293,0.49267883,3516.3,3515.9,0.22746648]
[1718947198792,0.49268014,3516.3,3515.9,0.22746648]
[1718947199585,0.49268195,3516.3,3515.9,0.22746648]
[1718947200571,0.86897015,3516.3,3515.9,0.22746648]
[1718947200957,0.3762882,3516.3,3515.9,0.22746648]
[1718947201289,0.86896744,3516.3,3515.9,0.22746648]
[1718947201690,0.49267924,3516.3,3515.9,0.22746648]
[1718947203756,0.49266949,3516.3,3515.9,0.22746648]
[1718947206786,0.49267707,3516.3,3515.9,0.22746648]
[1718947207304,0.49267958,3516.3,3515.9,0.22746648]
[1718947207857,3.2702,3516.4,3515.9,0.22746648]
[1718947208097,0.49266801,3516.3,3515.9,0.22746648]
[1718947209256,1.2522868,3516.2,3515.9,0.22746648]
[1718947209456,0.49266801,3516.1,3515.9,0.22746648]
[1718947209781,1.2522868,3516.2,3515.9,0.22746648]
[1718947209987,0.49268253,3516.1,3515.9,0.22746648]
[1718947210377,0.876,3516.2,3515.9,0.22746648]
[1718947211001,0.3012392,3516.1,3515.9,0.22746648]
[1718947214401,0.876,3516.2,3515.9,0.22746648]
[1718947216510,1.36871926,3516.2,3515.9,0.22746648]
[1718947216706,0.49271926,3516.1,3515.9,0.22746648]
[1718947217205,0.49271866,3516.1,3515.9,0.22746648]
[1718947218211,0.876,3516.2,3515.9,0.22746648]
[1718947218384,0.37629187,3516.1,3515.9,0.22746648]
[1718947218572,0.86901053,3516.1,3515.9,0.22746648]
[1718947219169,0.86902497,3516.1,3515.9,0.22746648]
[1718947219693,0.4927331,3516.0,3515.9,0.22746648]
[1718947221111,3.8438331,3516.0,3515.9,0.22746648]
[1718947221310,4.2658456,3516.0,3515.9,0.22746648]
[1718947222230,3.7731125,3516.0,3515.9,0.22746648]
[1718947222522,4.26588661,3516.0,3515.9,0.22746648]
[1718947224683,0.49277411,3516.0,3515.9,0.22746648]
[1718947225288,0.876,3516.2,3515.9,0.22746648]
[1718947225618,0.49272353,3516.1,3515.9,0.22746648]
[1718947225820,0.876,3516.2,3515.9,0.22746648]
[1718947226030,0.49273122,3516.0,3515.9,0.22746648]
[1718947226812,0.49272898,3516.0,3515.9,0.22746648]
[1718947228634,0.49270622,3516.0,3515.9,0.22746648]
[1718947231546,0.876,3516.2,3515.9,0.22746648]
[1718947231756,0.49269652,3516.0,3515.9,0.22746648]
[1718947234739,0.876,3516.2,3515.9,0.22746648]
[1718947234947,0.49269638,3516.0,3515.9,0.22746648]
[1718947235167,0.876,3516.3,3515.9,0.22746648]
[1718947235330,0.49269187,3516.0,3515.9,0.22746648]
[1718947235912,0.49269284,3516.0,3515.9,0.22746648]
[1718947237735,3.3201,3516.1,3515.9,0.22746648]
[1718947237937,0.82475094,3516.0,3515.9,0.22746648]
[1718947238899,7.26885094,3516.0,3515.9,0.22746648]
[1718947240234,7.81885094,3516.0,3515.9,1e-08]
[1718947240440,10.81885094,3516.0,3515.9,1e-08]
[1718947240656,10.32611,3516.0,3515.9,1e-08]
[1718947240888,8.37484715,3516.0,3515.6,0.0569]
[1718947241032,3.328,3515.7,3515.6,0.0569]
[1718947241236,3.82083715,3515.7,3515.6,0.0569]
[1718947241480,7.82083715,3515.7,3515.6,0.0569]
[1718947243889,7.328,3515.7,3515.6,0.0569]
[1718947244079,7.82086139,3515.7,3515.6,0.0569]
[1718947244275,8.60620649,3515.7,3515.6,0.0569]
[1718947244484,9.09906787,3515.7,3515.6,0.0569]
[1718947245095,8.60620649,3515.7,3515.6,0.0569]
[1718947245251,9.09906062,3515.7,3515.6,0.0569]
[1718947247074,8.60620649,3515.7,3515.6,0.0569]
[1718947247273,9.09907359,3515.7,3515.6,0.0569]
[1718947248552,8.22307359,3515.7,3515.6,0.0569]
[1718947248988,9.09907359,3515.7,3515.6,0.0569]
[1718947250327,9.09906691,3515.7,3515.6,0.0569]
[1718947253494,9.09907201,3515.7,3515.6,0.0569]
[1718947253793,8.60620649,3515.7,3515.6,0.0569]
[1718947253985,9.09908065,3515.7,3515.6,0.0569]
[1718947256519,9.09907226,3515.7,3515.6,0.0569]
[1718947259632,9.09908891,3515.7,3515.6,0.0569]
[1718947260481,9.64908891,3515.7,3515.6,0.0569]
[1718947260680,5.4687,3515.5,3514.4,7.6075]
[1718947260899,0.876,3514.5,3514.4,5.1804]
[1718947261128,0.876,3514.5,3514.1,2.4271]
[1718947261292,0.876,3514.2,3514.1,2.4271]
[1718947262784,0.876,3514.2,3513.8,2.4986]
[1718947262983,0.876,3514.0,3513.8,2.4986]
[1718947264194,0.876,3514.2,3513.8,2.4986]
[1718947267630,0.49300864,3514.7,3513.8,2.4986]
[1718947267833,0.876,3514.4,3513.8,3.5665]
[1718947267985,0.876,3514.4,3513.9,3.0]
[1718947269522,0.49297498,3514.7,3513.9,3.0]
[1718947269830,0.876,3514.4,3513.9,3.0]
[1718947270295,1.36897498,3514.4,3513.8,2.4986]
[1718947270504,0.876,3514.4,3513.8,2.4986]
[1718947270711,0.49297498,3514.6,3513.8,2.4986]
[1718947270925,0.876,3514.7,3513.8,2.4986]
[1718947271124,0.876,3514.7,3513.6,3.0]
[1718947271125,0.876,3514.7,3514.0,2.3402]
[1718947271716,0.876,3514.1,3514.0,2.3402]
[1718947272053,0.876,3514.3,3514.0,2.3402]
[1718947274156,0.49295291,3514.9,3514.0,2.3402]
[1718947274438,0.876,3514.9,3514.1,2.2813]
[1718947274672,0.876,3514.7,3514.1,5.2813]
[1718947274815,0.876,3514.5,3513.8,2.2813]
[1718947275666,0.876,3514.1,3513.8,2.2813]
[1718947275953,0.876,3514.1,3513.6,5.2813]
[1718947276366,0.876,3514.1,3513.6,2.2813]
[1718947276661,0.876,3514.1,3513.7,3.0]
[1718947276957,0.876,3514.1,3513.6,2.2813]
[1718947277816,1.36900021,3514.1,3513.6,2.2813]
[1718947278010,0.876,3514.1,3513.6,2.2813]
[1718947278519,0.876,3513.9,3513.4,2.487]
[1718947279161,0.876,3513.9,3513.3,3.0]
[1718947279648,1.36900021,3513.9,3513.3,3.0]
[1718947279850,0.876,3513.9,3513.3,3.0]
[1718947281357,0.876,3513.7,3513.3,3.0]
[1718947281584,0.4930767,3514.0,3513.3,3.0]
[1718947281739,2.4787,3514.2,3513.3,3.0]
[1718947281740,0.876,3513.8,3513.3,3.0]
[1718947282829,1.36904561,3514.0,3513.1,2.487]
[1718947283133,0.49304561,3513.9,3513.1,5.487]
[1718947283654,0.876,3513.8,3513.1,2.487]
[1718947284238,1.36903436,3514.0,3513.1,2.487]
[1718947284471,1.7785948,3514.0,3513.1,2.487]
[1718947284764,0.49303436,3513.9,3513.1,2.487]
[1718947286865,1.28556044,3514.0,3513.1,2.487]
[1718947287082,0.98607466,3513.9,3513.1,2.487]
[1718947287362,0.49303733,3513.8,3513.1,2.487]
[1718947288046,0.98607466,3513.9,3513.1,2.487]
[1718947288224,0.49303733,3513.8,3513.1,2.487]
[1718947288565,1.36903733,3513.9,3513.2,2.2976]
[1718947288566,0.49303733,3513.7,3513.2,2.2976]
[1718947288762,0.49303733,3513.8,3513.3,0.61736]
[1718947288968,0.49303733,3513.9,3513.4,2.2976]
[1718947289126,0.49303733,3513.9,3513.4,5.2976]
[1718947289324,0.49303733,3513.8,3513.4,5.2976]
[1718947289525,0.49303733,3513.7,3513.4,5.976696]
[1718947289749,0.49303733,3513.8,3513.4,5.976696]
[1718947289982,0.49300286,3513.7,3513.4,5.976696]
[1718947290169,0.49300286,3513.8,3513.4,5.976696]
[1718947290369,2.07058894,3513.7,3513.4,5.976696]
[1718947290583,0.49299736,3513.6,3513.4,5.976696]
[1718947290736,0.49299736,3513.8,3513.4,5.976696]
[1718947290935,0.49303733,3513.9,3513.4,5.2976]
[1718947291160,0.4929963,3513.8,3513.4,2.2976]
[1718947291442,0.4929963,3513.7,3513.4,2.2976]
[1718947291639,0.4929963,3513.8,3513.4,2.2976]
[1718947291883,0.4929963,3513.7,3513.4,2.2976]
[1718947292191,0.4929963,3513.6,3513.4,2.2976]
[1718947292379,0.4929963,3513.8,3513.4,2.2976]
[1718947292687,0.4929963,3513.7,3513.4,2.2976]
[1718947292836,0.4929963,3513.6,3513.4,2.2976]
[1718947293038,0.49305617,3513.5,3513.0,2.2648]
[1718947293265,1.36905617,3513.4,3513.0,2.2648]
[1718947293522,0.49303733,3513.9,3512.1,2.2648]
[1718947293523,0.49305617,3513.3,3512.1,2.2648]
[1718947293698,0.49305617,3513.3,3512.0,3.0]
[1718947293699,0.49305617,3513.2,3512.3,2.2648]
[1718947293896,0.49305617,3513.1,3512.5,0.876]
[1718947294107,0.49305617,3513.4,3512.3,2.2648]
[1718947294431,3.81475617,3513.3,3512.3,2.2648]
[1718947294593,0.49305617,3513.2,3512.3,2.2648]
[1718947294928,3.3217,3513.3,3512.3,3.149568]
[1718947294929,0.49305617,3513.1,3512.3,3.149568]
[1718947295083,0.49305617,3513.2,3512.3,3.149568]
[1718947295283,0.49305617,3513.2,3512.4,3.0]
[1718947295614,0.49305617,3513.2,3512.5,2.342]
[1718947295824,1.36905617,3513.6,3512.7,2.342]
[1718947296031,0.49308405,3513.5,3512.7,5.342]
[1718947296323,0.49308405,3513.4,3512.7,5.342]
[1718947296624,0.49308405,3513.3,3512.7,5.342]
[1718947296941,0.49308405,3513.5,3512.7,5.342]
[1718947297079,0.49308405,3513.4,3512.7,5.342]
[1718947297285,0.49308405,3513.5,3512.7,5.342]
[1718947297493,0.49308405,3513.4,3512.7,6.03266125]
[1718947297711,0.49308405,3513.3,3512.7,6.03266125]
[1718947297915,0.49308405,3513.5,3512.7,6.03266125]
[1718947298118,0.49308405,3513.4,3512.7,6.03266125]
[1718947298430,0.49308405,3513.3,3512.7,6.03266125]
[1718947298633,0.49308405,3513.5,3512.7,6.03266125]
[1718947298850,2.3256,3513.7,3512.7,6.03266125]
[1718947298851,0.49308405,3513.4,3512.7,6.03266125]
[1718947299019,0.49308455,3513.4,3512.8,0.69086613]
[1718947299199,0.49308455,3513.6,3512.8,3.69086613]
[1718947299398,3.2016,3513.7,3512.8,3.69086613]
[1718947299626,0.49306743,3513.5,3512.8,3.69086613]
[1718947299828,0.49306743,3513.6,3512.8,3.69086613]
[1718947300034,0.49306743,3513.5,3512.8,3.69086613]
[1718947300236,0.49306377,3513.6,3512.8,3.69086613]
[1718947300446,0.49306377,3513.5,3512.8,3.69086613]
[1718947300622,0.49306377,3513.4,3512.8,3.69086613]
[1718947300805,0.49306377,3513.3,3512.8,3.69086613]
[1718947301011,0.49306377,3513.4,3512.8,3.69086613]
[1718947301343,0.49306377,3513.3,3512.8,3.69086613]
[1718947301494,0.49306377,3513.4,3512.8,3.69086613]
[1718947301697,0.49306377,3513.3,3512.8,3.0]
[1718947301926,0.876,3513.5,3512.7,2.342]
[1718947302134,0.49309828,3513.4,3512.7,2.342]
[1718947302295,0.49309828,3513.3,3512.7,2.342]
[1718947302493,0.876,3513.5,3512.5,3.0]
[1718947302494,0.49309828,3513.4,3512.5,3.0]
[1718947302695,0.49309828,3513.3,3512.5,3.876]
[1718947303004,0.49309828,3513.2,3512.5,3.0]
[1718947303212,0.49309828,3513.1,3512.5,3.0]
[1718947303407,0.49309828,3513.2,3512.5,3.0]
[1718947304340,0.49309828,3513.1,3512.5,3.0]
[1718947304648,0.49309828,3513.2,3512.5,3.0]
[1718947304811,0.49309828,3513.1,3512.5,3.0]
[1718947305014,0.876,3513.3,3512.5,3.0]
[1718947305199,0.49312105,3513.2,3512.5,3.0]
[1718947305399,0.49312105,3513.1,3512.5,3.0]
[1718947305628,0.49312105,3513.2,3512.5,3.0]
[1718947305811,0.49312105,3513.1,3512.5,3.0]
[1718947306112,0.49312105,3513.2,3512.5,3.0]
[1718947306402,0.49312105,3513.1,3512.5,3.0]
[1718947306635,0.876,3513.3,3512.5,3.0]
[1718947306636,0.49312105,3513.2,3512.5,3.0]
[1718947306794,0.49312105,3513.1,3512.5,3.0]
[1718947307000,0.49312105,3513.2,3512.5,3.0]
[1718947307229,0.49312105,3513.1,3512.5,3.0]
[1718947307436,0.49312105,3513.0,3512.5,3.0]
[1718947307602,0.49312105,3513.2,3512.5,3.0]
[1718947307801,0.49312105,3513.1,3512.5,3.0]
[1718947308001,0.49312105,3513.2,3512.5,3.0]
[1718947308203,0.49312179,3513.1,3512.5,3.0]
[1718947308572,0.876,3513.3,3512.5,3.0]
[1718947308776,0.49313051,3513.0,3512.5,3.0]
[1718947309060,0.49313051,3513.2,3512.5,3.0]
[1718947309223,0.49313051,3513.1,3512.5,3.0]
[1718947309427,0.49312945,3513.0,3512.5,3.0]
[1718947309629,0.49312945,3513.2,3512.6,2.4265]
[1718947309849,1.36912945,3513.6,3512.7,0.43837045]
[1718947310070,0.49312945,3513.5,3512.7,3.0]
[1718947310230,0.876,3513.6,3512.7,3.0]
[1718947310231,0.49312945,3513.4,3512.7,3.0]
[1718947310427,0.49312945,3513.3,3512.6,5.4265]
[1718947310662,0.49312945,3513.5,3512.6,5.4265]
[1718947310836,0.49312945,3513.4,3512.6,6.57479]
[1718947311041,0.49312945,3513.3,3512.6,6.57479]
[1718947311378,0.49310261,3513.2,3512.6,6.57479]
[1718947311578,0.49310261,3513.5,3512.6,6.57479]
[1718947311871,0.49310261,3513.4,3512.6,6.57479]
[1718947312043,0.49310261,3513.3,3512.6,6.57479]
[1718947312375,0.49310261,3513.2,3512.7,0.42509045]
[1718947312575,0.49310261,3513.2,3512.7,3.0]
[1718947312731,0.49310261,3513.5,3512.7,3.0]
[1718947312932,0.49310261,3513.4,3512.6,5.4265]
[1718947313163,0.49310261,3513.3,3512.6,5.4265]
[1718947313369,0.49310261,3513.2,3512.6,6.57479]
[1718947313581,0.49310261,3513.1,3512.6,6.57479]
[1718947313758,0.49310261,3513.5,3512.6,6.57479]
[1718947313945,0.49310261,3513.4,3512.6,6.57479]
[1718947314145,0.49310261,3513.3,3512.6,6.57479]
[1718947314472,0.49310516,3513.2,3512.6,6.57479]
[1718947314642,0.49310516,3513.1,3512.6,5.4265]
[1718947314842,0.49310516,3513.5,3512.6,5.4265]
[1718947315045,0.49310516,3513.4,3512.6,5.4265]
[1718947315362,0.49310516,3513.3,3512.6,5.4265]
[1718947315666,0.49310516,3513.2,3512.7,0.02819899]
[1718947315868,0.49310516,3513.1,3512.7,0.02819899]
[1718947316169,0.49310516,3513.5,3512.7,0.02819899]
[1718947316467,0.49310516,3513.4,3512.7,0.02819899]
[1718947316674,0.49310516,3513.3,3512.7,0.02819899]
[1718947316968,0.49310516,3513.2,3512.7,0.02819899]
[1718947317169,0.49310516,3513.1,3512.7,0.02819899]
[1718947317536,0.49310568,3513.4,3512.7,0.02819899]
[1718947317763,0.49310568,3513.3,3512.7,0.02819899]
[1718947317962,0.49311035,3513.2,3512.7,0.02819899]
[1718947318145,2.4454,3513.7,3512.7,0.02819899]
[1718947318146,0.49311035,3513.1,3512.7,0.02819899]
[1718947318349,0.49311035,3513.0,3512.6,2.4265]
[1718947318572,0.49311035,3513.3,3512.6,2.4265]
[1718947318780,0.49311978,3513.2,3512.6,2.4265]
[1718947318948,0.49311978,3513.1,3512.6,2.4265]
[1718947319256,0.49311978,3513.0,3512.6,2.4265]
[1718947319446,0.49311978,3512.9,3512.6,2.4265]
[1718947319655,0.49311978,3513.2,3512.6,2.4265]
[1718947319886,0.49311978,3513.1,3512.6,2.4265]
[1718947320057,0.49311978,3513.0,3512.5,3.0]
[1718947320272,0.49311978,3512.9,3512.5,3.0]
[1718947320472,3.6541494,3513.2,3512.5,3.0]
[1718947320673,0.876,3513.0,3512.5,3.0]
[1718947320969,0.49313134,3512.9,3512.5,3.0]
[1718947321132,0.49313134,3512.8,3512.5,3.0]
[1718947321338,1.29072807,3513.0,3512.5,3.0]
[1718947321339,0.49313134,3512.7,3512.5,3.0]
[1718947321551,0.49313134,3512.6,3512.4,2.4002]
[1718947321750,1.29072807,3513.0,3512.4,2.4002]
[1718947321751,0.49313134,3512.9,3512.4,2.4002]
[1718947321955,0.49313134,3512.8,3512.1,5.3956]
[1718947322156,0.49313134,3512.7,3512.1,5.3956]
[1718947322349,0.49313134,3512.6,3512.1,5.3956]
[1718947322672,0.49313134,3512.5,3512.1,5.3956]
[1718947322973,0.49315555,3512.8,3512.1,5.3956]
[1718947323186,0.49315555,3512.7,3512.1,2.3956]
[1718947323476,0.49315555,3512.6,3512.1,2.3956]
[1718947323681,0.49172555,3512.5,3512.1,2.279795]
[1718947323874,0.876,3513.0,3512.1,2.279795]
[1718947325004,2.4054,3513.2,3512.1,3.7713745]
[1718947325155,2.4054,3513.2,3512.2,3.876]
[1718947326888,3.2814,3513.2,3512.2,3.876]
[1718947327882,2.4054,3513.2,3512.2,3.876]
[1718947328283,3.2814,3513.2,3512.2,3.876]
[1718947328616,2.3451,3512.3,3512.2,3.0]
[1718947328766,0.876,3512.4,3512.1,3.0]
[1718947329803,0.876,3512.2,3512.1,3.0]
[1718947330387,0.876,3512.4,3512.1,3.0]
[1718947331085,0.876,3512.2,3512.1,3.0]
[1718947331289,1.19811,3512.4,3511.7,3.0]
[1718947331486,0.876,3512.4,3511.7,3.0]
[1718947332988,0.876,3512.2,3511.7,3.0]
[1718947333368,0.876,3512.4,3511.7,3.0]
[1718947333571,1.19811,3512.4,3511.7,3.0]
[1718947333774,0.49327535,3512.3,3511.7,3.0]
[1718947335217,1.19811,3512.4,3511.7,3.0]
[1718947335390,0.49327377,3512.3,3511.7,3.0]
[1718947335576,1.19811,3512.4,3511.7,3.0]
[1718947335777,0.49327334,3512.3,3511.7,3.0]
[1718947336219,0.49327334,3512.3,3511.8,2.3035]
[1718947336517,1.36927334,3512.5,3511.8,2.3035]
[1718947336712,1.60378334,3512.5,3511.8,2.3035]
[1718947337814,0.49327334,3512.5,3511.9,0.876]
[1718947338022,0.49327334,3512.8,3511.9,3.876]
[1718947338174,0.49327334,3512.8,3512.0,0.05694113]
[1718947338375,0.876,3512.7,3512.0,0.05694113]
[1718947341330,1.36919805,3512.7,3512.0,0.05694113]
[1718947341493,1.8623961,3512.7,3512.0,0.05694113]
[1718947341694,0.49319805,3512.6,3512.0,0.05694113]
[1718947341923,0.49319805,3512.7,3512.0,0.05694113]
[1718947342122,0.9863961,3512.7,3512.0,0.05694113]
[1718947343527,0.49319805,3512.7,3512.0,0.05694113]
[1718947344109,0.98639606,3512.7,3512.0,0.05694113]
[1718947345329,0.49319805,3512.7,3512.0,0.05694113]
[1718947346031,0.49319805,3512.7,3512.1,2.4469]
[1718947346230,0.49319805,3512.7,3512.1,5.4469]
[1718947346395,0.98639136,3512.7,3512.1,5.4469]
[1718947346694,0.98639136,3512.7,3512.1,2.4469]
[1718947348760,0.49319805,3512.7,3512.1,2.99159]
[1718947348925,0.49319805,3512.7,3512.6,0.876]
[1718947349114,0.49319805,3512.7,3512.6,3.214]
[1718947349315,0.49319805,3512.7,3512.6,6.214]
[1718947349545,0.49319805,3512.7,3512.6,6.8354]
[1718947357620,0.49319805,3512.7,3512.6,5.9594]
[1718947357819,0.49319805,3512.7,3512.6,6.8354]
[1718947359540,0.4930264,3513.9,3512.6,6.8354]
[1718947359744,0.4930264,3513.9,3513.0,0.876]
[1718947360053,0.4930264,3513.9,3513.0,1.2636]
[1718947362561,2.4187,3514.0,3513.0,1.2636]
[1718947362736,0.49302238,3513.9,3513.0,1.2636]
[1718947362931,2.4187,3514.0,3513.0,1.2636]
[1718947363238,0.49302238,3513.9,3513.0,1.2636]
[1718947363641,0.49302238,3513.9,3513.1,2.4988]
[1718947363844,0.49302238,3513.9,3513.2,0.37624]
[1718947364235,0.49302238,3513.9,3513.2,3.37624]
[1718947365865,0.4930219,3513.9,3513.2,3.37624]
[1718947368949,0.876,3513.8,3513.3,3.0]
[1718947369149,1.20547,3513.8,3513.3,3.0]
[1718947369395,0.49304614,3513.7,3513.0,3.0]
[1718947371260,0.49304614,3513.6,3513.0,3.0]
[1718947371491,0.49304614,3513.5,3513.0,3.0]
[1718947371795,0.49304614,3513.7,3513.0,3.0]
[1718947371970,0.32947,3513.8,3513.0,3.0]
[1718947372167,0.49305018,3513.7,3513.0,3.0]
[1718947372484,0.49305639,3513.6,3513.0,3.0]
[1718947372796,0.49305639,3513.5,3513.0,3.0]
[1718947372952,0.49305639,3513.4,3513.0,3.0]
[1718947373294,0.49305273,3513.3,3513.0,3.0]
[1718947373499,0.49305273,3513.2,3513.0,3.0]
[1718947373712,0.49305273,3513.1,3513.0,3.0]
[1718947374026,0.49305273,3513.4,3513.0,3.62943]
[1718947374304,0.49305273,3513.3,3513.0,3.62943]
[1718947374516,0.49305273,3513.2,3513.0,3.62943]
[1718947374673,0.49305273,3513.1,3513.0,3.62943]
[1718947374874,0.49305273,3513.6,3513.0,3.0]
[1718947375075,0.49305273,3513.5,3513.0,3.0]
[1718947375387,0.49305046,3513.4,3513.0,3.0]
[1718947375713,0.49305046,3513.3,3513.0,3.0]
[1718947375872,0.49305046,3513.2,3513.0,3.0]
[1718947376204,0.49305046,3513.1,3513.0,3.0]
[1718947376519,0.49305046,3513.6,3513.0,3.0]
[1718947376710,0.49305046,3513.5,3513.0,3.0]
[1718947377010,0.49305046,3513.4,3513.0,3.0]
[1718947377307,2.3416,3513.7,3513.0,3.0]
[1718947377308,0.49305046,3513.3,3513.0,3.0]
[1718947377507,2.3416,3513.7,3513.0,3.0]
[1718947377508,0.49305046,3513.2,3513.0,3.0]
[1718947377710,0.49305046,3513.1,3513.0,3.0]
[1718947377874,0.49305046,3513.6,3513.0,3.0]
[1718947378075,0.49305046,3513.5,3513.0,3.0]
[1718947378291,0.49305046,3513.4,3513.0,3.0]
[1718947378491,0.49305378,3513.3,3513.0,3.0]
[1718947378877,2.93065378,3513.2,3512.7,3.0]
[1718947379111,0.49305378,3513.1,3512.7,3.0]
[1718947379313,0.49305378,3513.0,3512.7,3.0]
[1718947379474,0.49305378,3512.9,3512.7,3.0]
[1718947379672,0.49305378,3512.8,3512.7,3.0]
[1718947380010,0.49305378,3513.1,3512.7,3.0]
[1718947380195,0.49305378,3513.0,3512.7,3.0]
[1718947380366,0.49305378,3512.9,3512.7,3.0]
[1718947380567,2.4376,3513.2,3512.7,3.0]
[1718947380568,0.49305378,3512.8,3512.7,3.0]
[1718947380999,2.4376,3513.2,3512.7,3.0]
[1718947381210,0.49309793,3513.1,3512.7,3.0]
[1718947381408,2.76896,3513.2,3512.7,3.0]
[1718947381585,0.49309786,3513.1,3512.7,3.0]
[1718947381785,0.49309786,3513.0,3512.7,3.0]
[1718947381987,0.49309786,3512.9,3512.7,3.0]
[1718947382314,0.49310986,3512.8,3512.7,3.0]
[1718947383374,0.49310986,3513.1,3512.7,3.0]
[1718947383779,0.4931294,3513.0,3512.7,3.0]
[1718947383975,0.4931294,3512.9,3512.7,3.0]
[1718947384234,0.4931294,3512.9,3512.5,0.876]
[1718947384235,0.4931294,3512.8,3512.5,3.876]
[1718947384410,0.4931294,3513.1,3512.5,3.876]
[1718947384580,0.4931294,3513.0,3512.5,3.876]
[1718947384779,0.4931294,3512.9,3512.5,3.876]
[1718947385019,0.4931294,3512.8,3512.5,3.0]
[1718947385327,0.4931294,3513.1,3512.4,2.3]
[1718947385498,0.4931294,3513.0,3512.4,2.3]
[1718947385821,0.4931294,3512.9,3512.4,2.3]
[1718947386032,0.4931294,3512.8,3512.4,2.3]
[1718947386211,0.4931294,3513.1,3512.4,2.3]
[1718947386523,0.4931294,3513.0,3512.4,2.3]
[1718947386676,0.4931294,3512.9,3512.4,2.3]
[1718947386880,0.49313153,3513.1,3512.4,2.3]
[1718947387230,0.49313153,3513.0,3512.4,2.3]
[1718947387447,0.49313153,3512.9,3512.4,2.3]
[1718947387586,0.49313153,3513.1,3512.4,2.3]
[1718947387787,0.49313153,3513.0,3512.4,2.3]
[1718947387987,0.49313153,3512.9,3512.4,2.3]
[1718947388188,0.49313153,3513.1,3512.4,2.3]
[1718947388414,0.49313153,3513.0,3512.4,2.3]
[1718947388732,0.49313153,3512.9,3512.4,2.3]
[1718947388930,0.49313153,3513.1,3512.4,2.3]
[1718947389135,0.49313153,3513.0,3512.4,2.3]
[1718947389323,0.49313153,3513.1,3512.4,2.3]
[1718947389626,2.4376,3513.2,3512.4,2.3]
[1718947389627,0.49313153,3513.0,3512.4,2.3]
[1718947389828,0.49313153,3513.1,3512.4,2.3]
[1718947389992,2.4376,3513.2,3512.4,2.3]
[1718947390192,0.4931283,3513.1,3512.4,2.3]
[1718947390389,2.4376,3513.2,3512.4,2.3]
[1718947390697,0.49312822,3513.1,3512.4,2.3]
[1718947390909,0.49312822,3513.0,3512.4,2.3]
[1718947391214,0.49313743,3513.1,3512.4,2.3]
[1718947391411,0.49313743,3513.0,3512.4,2.3]
[1718947391620,0.49313743,3513.1,3512.4,2.3]
[1718947391822,0.49313743,3513.0,3512.4,2.3]
[1718947392033,0.49313743,3513.1,3512.4,2.3]
[1718947392340,0.49313743,3513.0,3512.4,2.3]
[1718947392554,0.49313743,3513.1,3512.4,2.3]
[1718947392701,0.49313743,3513.0,3512.8,2.386]
[1718947393051,2.4008,3513.6,3512.8,5.386]
[1718947393199,0.49307904,3513.5,3512.8,5.386]
[1718947393405,0.49307904,3513.4,3512.8,5.386]
[1718947393603,0.49307904,3513.5,3512.8,5.386]
[1718947393809,2.4008,3513.6,3512.8,5.386]
[1718947393810,0.49307904,3513.4,3512.8,5.386]
[1718947394011,2.4008,3513.6,3512.8,5.386]
[1718947394012,0.49307904,3513.3,3512.8,5.386]
[1718947394455,0.49307904,3513.5,3512.8,5.386]
[1718947394741,0.876,3513.8,3512.8,5.386]
[1718947394742,0.49307904,3513.4,3512.8,6.0122]
[1718947394963,0.49307904,3513.8,3512.9,0.876]
[1718947395107,0.49307904,3513.7,3512.9,3.876]
[1718947395309,0.49307904,3513.6,3512.9,3.876]
[1718947395509,0.49307904,3513.5,3512.9,3.876]
[1718947395756,0.49307904,3513.8,3513.1,0.876]
[1718947396079,0.49307904,3513.7,3513.1,0.876]
[1718947396211,0.49304067,3513.6,3513.1,0.876]
[1718947396411,0.49304067,3513.5,3513.1,0.876]
[1718947396611,0.49304067,3513.8,3513.1,0.876]
[1718947396807,0.49304067,3513.8,3512.9,3.0]
[1718947396808,0.49304067,3513.7,3512.9,3.876]
[1718947397035,0.49304067,3513.6,3512.9,3.876]
[1718947397334,0.49304067,3513.5,3512.9,3.876]
[1718947397538,0.49304067,3513.4,3512.9,3.876]
[1718947397907,0.33489,3513.8,3512.9,3.876]
[1718947397908,0.49304067,3513.7,3512.9,3.876]
[1718947398110,0.49304067,3513.6,3512.9,3.876]
[1718947398306,0.49304067,3513.5,3512.9,3.876]
[1718947398556,0.49304067,3513.4,3513.1,0.876]
[1718947398793,0.49304067,3513.8,3513.2,2.7241]
[1718947398961,0.49304067,3513.7,3513.3,3.0]
[1718947399304,3.2784,3514.2,3513.3,3.0]
[1718947399463,0.49300317,3514.1,3513.2,5.3365]
[1718947399666,0.37714032,3514.0,3513.2,5.3365]
[1718947399851,0.87014315,3514.0,3513.2,5.3365]
[1718947400201,0.49300283,3513.9,3513.3,0.876]
[1718947400351,0.49300283,3513.8,3513.3,3.876]